bitfinex/quotes_SOLUSD_20241007
["timestamp","ask_amount","ask_price","bid_price","bid_amount"]
[1728274670923,6.6445,150.5,150.46,16.6152]
[1728274671103,6.6445,150.5,150.46,23.2613]
[1728274671724,6.6441,150.51,150.46,23.2613]
[1728274674039,0.25098,150.5,150.46,23.2613]
[1728274679826,0.25098,150.5,150.43,23.266]
[1728274680037,0.25098,150.46,150.43,16.6185]
[1728274680417,43.776884,150.5,150.43,20.30193202]
[1728274680728,6.89598,150.49,150.45,6.6466]
[1728274681281,0.25098,150.49,150.45,6.6466]
[1728274681537,0.25098,150.5,150.47,6.6454]
[1728274681913,0.25098,150.5,150.46,23.2618]
[1728274684930,0.12549,150.51,150.46,16.6156]
[1728274685130,21.6938,150.55,150.48,16.6127]
[1728274685311,20.8589597,150.54,150.48,16.6127]
[1728274685830,20.8589597,150.54,150.49,1.32881209]
[1728274686133,27.5017597,150.54,150.5,6.6444]
[1728274687014,0.8589597,150.54,150.49,1.32881209]
[1728274687223,0.8589597,150.54,150.51,6.644]
[1728274689136,0.8589597,150.54,150.46,12.24715358]
[1728274689137,0.8589597,150.54,150.52,7.97222921]
[1728274689342,0.8589597,150.54,150.52,6.6435]
[1728274704756,7.5018597,150.54,150.5,16.6105]
[1728274705054,0.8589597,150.54,150.5,23.2549]
[1728274706658,0.8589597,150.54,150.51,6.6439]
[1728274713639,0.8589597,150.54,150.5,23.2549]
[1728274714555,0.25098,150.53,150.47,16.0715]
[1728274714860,6.89428,150.53,150.48,6.6453]
[1728274716876,0.25098,150.53,150.48,6.6453]
[1728274717173,6.6436,150.52,150.48,6.6453]
[1728274717463,0.25098,150.53,150.43,15.8308]
[1728274717637,0.25098,150.53,150.45,20.0]
[1728274718041,6.6441,150.51,150.46,6.6461]
[1728274718448,6.6441,150.51,150.47,6.6458]
[1728274718648,6.6436,150.52,150.48,7.97422811]
[1728274718853,6.6436,150.52,150.48,6.6452]
[1728274719842,0.25098,150.53,150.48,6.6452]
[1728274720141,6.89418,150.53,150.48,6.6452]
[1728274722547,0.12549,150.51,150.46,16.6151]
[1728274722864,6.6459,150.47,150.43,6.6475]
[1728274723069,6.1916,150.5,150.46,6.6458]
[1728274724943,12.8362,150.5,150.45,6.6466]
[1728274725844,0.25098,150.49,150.42,6.6476]
[1728274726165,6.6458,150.47,150.42,6.6476]
[1728274726339,6.89628,150.49,150.43,6.6474]
[1728274733373,6.89628,150.49,150.44,7.97621375]
[1728274734171,0.25098,150.49,150.45,6.6467]
[1728274744465,0.25098,150.49,150.43,16.6182]
[1728274744668,6.6455,150.48,150.43,23.2656]
[1728274745288,15.0976,150.48,150.39,16.1118]
[1728274745591,6.6466,150.46,150.41,6.6484]
[1728274748165,6.6466,150.46,150.41,7.97789971]
[1728274748565,0.25098,150.47,150.41,1.32949971]
[1728274749175,0.25098,150.47,150.43,6.6475]
[1728274751395,6.89688,150.47,150.43,6.6475]
[1728274753695,6.89688,150.47,150.42,6.6479]
[1728274754400,6.89688,150.47,150.4,16.6221]
[1728274754574,6.89688,150.47,150.43,6.6474]
[1728274754774,21.743,150.48,150.44,6.6471]
[1728274756783,15.0976,150.48,150.45,1.3293194]
[1728274757096,15.0976,150.48,150.45,6.6467]
[1728274757397,6.645,150.49,150.45,6.6467]
[1728274757586,12.8362,150.5,150.46,6.6462]
[1728274758077,6.9304115,150.53,150.48,20.0]
[1728274758311,0.8589597,150.54,150.49,7.97333288]
[1728274758800,0.8589597,150.54,150.5,6.6443]
[1728274760799,6.6434,150.53,150.48,7.97402799]
[1728274761001,0.25098,150.52,150.48,7.97402799]
[1728274761206,0.25098,150.53,150.47,16.6145]
[1728274761374,6.6436,150.52,150.47,23.2603]
[1728274764799,6.89418,150.53,150.48,7.9742027]
[1728274765482,6.89418,150.53,150.48,6.6453]
[1728274765799,6.89418,150.53,150.48,7.97420403]
[1728274767402,6.89418,150.53,150.48,6.6453]
[1728274767706,6.89418,150.53,150.48,7.97420395]
[1728274776009,23.0486597,150.54,150.48,1.32890395]
[1728274776195,23.0486597,150.54,150.5,6.6444]
[1728274781608,29.6913597,150.54,150.5,6.6444]
[1728274782020,6.6435,150.53,150.48,6.6453]
[1728274784110,0.12549,150.53,150.47,16.6145]
[1728274784303,0.12549,150.53,150.47,23.2602]
[1728274784304,0.25098,150.53,150.47,23.2602]
[1728274784504,6.644,150.52,150.47,23.2602]
[1728274785704,6.644,150.52,150.48,1.32889902]
[1728274786512,6.644,150.52,150.47,23.2602]
[1728274787318,6.644,150.52,150.48,1.32892829]
[1728274787713,6.644,150.52,150.47,23.2602]
[1728274793420,6.644,150.52,150.48,1.32892707]
[1728274795322,6.644,150.52,150.47,23.2602]
[1728274796321,6.644,150.52,150.48,7.97422626]
[1728274796500,6.6433,150.53,150.49,6.6448]
[1728274796915,29.6913597,150.54,150.5,1.32876131]
[1728274797295,29.6913597,150.54,150.49,6.6448]
[1728274802797,23.0486597,150.54,150.51,6.644]
[1728274803106,0.8589597,150.54,150.52,7.97209754]
[1728274803502,0.8589597,150.54,150.53,6.6431]
[1728274803798,0.8589597,150.54,150.53,10.32913464]
[1728274804621,0.8589597,150.54,150.53,6.6431]
[1728274804810,0.8589597,150.54,150.53,10.3275282]
[1728274805503,0.8589597,150.54,150.53,6.6431]
[1728274806111,0.8589597,150.54,150.53,10.32493669]
[1728274806302,0.8589597,150.54,150.53,6.6431]
[1728274806499,0.8589597,150.54,150.53,77.3260767]
[1728274806701,0.1,150.59,150.53,77.3260767]
[1728274806702,0.1,150.59,150.58,26.6409]
[1728274806912,0.1,150.59,150.58,10.31782826]
[1728274807099,0.1,150.59,150.58,6.6409]
[1728274807302,0.1,150.59,150.58,7.96870961]
[1728274807505,0.1,150.59,150.58,6.6409]
[1728274807917,0.1,150.59,150.58,7.96873622]
[1728274808121,0.1,150.59,150.58,7.9687414]
[1728274808510,0.1,150.59,150.58,6.6409]
[1728274809035,0.1,150.59,150.58,7.96875257]
[1728274809400,0.1,150.59,150.58,7.96874408]
[1728274809825,0.1,150.59,150.58,6.6409]
[1728274810608,0.1,150.59,150.58,7.96868614]
[1728274811007,0.1,150.59,150.58,40.21583972]
[1728274812105,0.1,150.59,150.58,38.88805358]
[1728274812309,0.1,150.59,150.58,40.21577482]
[1728274813622,0.1,150.59,150.58,26.6409]
[1728274814532,0.1,150.59,150.58,6.6409]
[1728274819216,0.1,150.59,150.58,7.96878922]
[1728274819612,0.1,150.59,150.58,6.6409]
[1728274820235,0.1,150.59,150.58,7.96880964]
[1728274820929,0.1,150.59,150.58,7.96879831]
[1728274821137,0.1,150.59,150.58,6.6409]
[1728274826527,0.1,150.59,150.57,23.2444]
[1728274827239,0.1,150.59,150.58,6.6409]
[1728274831842,0.1,150.59,150.58,7.96891251]
[1728274832037,0.1,150.59,150.58,6.6409]
[1728274832938,0.1,150.59,150.58,7.96891357]
[1728274833144,0.1,150.59,150.58,6.6409]
[1728274833440,0.1,150.59,150.57,16.6031]
[1728274834943,0.1,150.59,150.57,23.2443]
[1728274835454,0.1,150.59,150.53,15.161]
[1728274835635,0.1,150.59,150.56,6.6414]
[1728274836366,6.7405,150.59,150.54,43.2488]
[1728274836648,0.98402022,150.58,150.53,6.6431]
[1728274836846,0.25098,150.58,150.53,6.6431]
[1728274837219,0.25098,150.58,150.54,6.6427]
[1728274838854,6.89198,150.58,150.54,6.6427]
[1728274839041,6.89198,150.58,150.53,6.643]
[1728274841370,20.25098,150.56,150.47,16.6135]
[1728274841650,0.25098,150.54,150.47,16.6135]
[1728274841958,0.85853022,150.53,150.47,16.6135]
[1728274842126,0.85853022,150.53,150.47,23.2589]
[1728274842127,6.6432,150.53,150.47,23.2589]
[1728274842749,0.85853022,150.52,150.47,23.2589]
[1728274842958,6.6432,150.53,150.48,6.6453]
[1728274843537,6.6432,150.53,150.48,7.97417191]
[1728274843745,6.6432,150.53,150.48,6.6453]
[1728274843951,6.6432,150.53,150.48,7.9741632]
[1728274844155,6.6432,150.53,150.48,6.6453]
[1728274844844,0.85853022,150.52,150.48,6.6453]
[1728274845346,6.6432,150.53,150.48,6.6453]
[1728274845757,0.85853022,150.52,150.48,6.6453]
[1728274846759,0.25098,150.52,150.48,6.6453]
[1728274847665,6.89458,150.52,150.48,6.6453]
[1728274848848,0.85853022,150.51,150.48,6.6453]
[1728274849958,6.89458,150.52,150.48,6.6453]
[1728274851069,0.85853022,150.51,150.48,6.6453]
[1728274851371,6.89458,150.52,150.48,6.6453]
[1728274851975,0.85853022,150.51,150.48,6.6453]
[1728274852266,6.89458,150.52,150.48,6.6453]
[1728274857472,0.85853022,150.51,150.48,6.6453]
[1728274858472,0.1,150.59,150.51,20.25098]
[1728274858674,0.1,150.59,150.58,6.6409]
[1728274858968,0.1,150.59,150.57,23.2445]
[1728274863683,0.1,150.59,150.58,6.6409]
[1728274866165,0.1,150.59,150.58,63.99271747]
[1728274866882,0.1,150.59,150.58,62.66493758]
[1728274868270,0.1,150.59,150.58,63.99259187]
[1728274868663,0.1,150.59,150.58,62.66493758]
[1728274869883,0.1,150.59,150.58,26.6409]
[1728274870267,0.1,150.59,150.58,6.6409]
[1728274870856,0.1,150.59,150.58,7.96883374]
[1728274871269,0.1,150.59,150.58,6.6409]
[1728274871985,0.07843036,150.64,150.63,50.415584]
[1728274872166,0.07843036,150.64,150.63,62.66273758]
[1728274872862,0.07843036,150.64,150.63,27.96596109]
[1728274873077,0.07843036,150.64,150.57,66.3622]
[1728274873078,0.07843036,150.64,150.59,16.6012]
[1728274873284,0.07843036,150.64,150.6,6.6399]
[1728274873472,6.6388,150.63,150.58,6.6405]
[1728274873670,6.71673036,150.64,150.59,1.3280136]
[1728274874074,1.10951022,150.63,150.56,23.2459]
[1728274874263,6.6392,150.62,150.57,6.6412]
[1728274874462,0.12549,150.63,150.59,6.6403]
[1728274874687,0.12549,150.62,150.56,16.6045]
[1728274874898,6.76429,150.63,150.58,6.6408]
[1728274875186,0.07843036,150.64,150.54,6.6423]
[1728274875187,6.6406,150.59,150.54,6.6423]
[1728274875393,0.85853022,150.58,150.54,6.6423]
[1728274875692,6.6406,150.59,150.54,6.6423]
[1728274876287,0.12549,150.61,150.55,1.32831516]
[1728274876687,0.12549,150.61,150.5,52.29992701]
[1728274876688,6.84232036,150.64,150.59,6.6404]
[1728274876878,20.0,150.63,150.59,6.6404]
[1728274878900,20.0,150.63,150.58,6.6409]
[1728274879794,0.12549,150.63,150.53,43.776884]
[1728274879962,20.25098,150.63,150.59,23.2418]
[1728274880790,0.25098,150.63,150.59,23.2418]
[1728274883493,1.10951022,150.63,150.59,23.2418]
[1728274884004,7.74831022,150.63,150.59,16.6013]
[1728274884487,0.12549,150.61,150.56,16.6045]
[1728274884715,0.07843036,150.64,150.63,6.6387]
[1728274884995,0.07843036,150.64,150.63,50.415584]
[1728274886093,0.07843036,150.64,150.63,7.96593986]
[1728274886395,0.07843036,150.64,150.63,26.6387]
[1728274887096,0.07843036,150.64,150.63,6.6387]
[1728274887276,0.07843036,150.64,150.63,27.96602481]
[1728274887600,0.07843036,150.64,150.63,26.6387]
[1728274887998,0.07843036,150.64,150.63,7.9660167]
[1728274888190,0.07843036,150.64,150.63,27.9660167]
[1728274888994,0.07843036,150.64,150.63,26.6387]
[1728274889197,0.07843036,150.64,150.6,16.5997]
[1728274889698,0.07843036,150.64,150.63,6.6387]
[1728274890594,0.07843036,150.64,150.61,6.6392]
[1728274890777,15.51403036,150.64,150.57,16.6035]
[1728274891106,15.51403036,150.64,150.53,104.50300803]
[1728274891107,0.25098,150.6,150.56,6.6418]
[1728274891274,0.25098,150.6,150.53,16.0147]
[1728274891275,15.51403036,150.64,150.53,16.0147]
[1728274891481,6.6396,150.61,150.56,23.2463]
[1728274891805,0.12549,150.62,150.56,23.2463]
[1728274891980,26.89018,150.62,150.56,23.2463]
[1728274892290,26.89018,150.62,150.57,6.6413]
[1728274892698,0.25098,150.6,150.53,16.0147]
[1728274892900,20.25098,150.58,150.52,16.6081]
[1728274893199,0.25098,150.56,150.52,16.6081]
[1728274893378,0.85853022,150.55,150.52,16.6081]
[1728274893781,0.12549,150.55,150.52,16.6081]
[1728274894397,6.64,150.61,150.55,6.6422]
[1728274894596,26.6401,150.6,150.53,6.6427]
[1728274894800,21.2341,150.63,150.55,6.6422]
[1728274894979,21.2341,150.63,150.53,1.32835788]
[1728274895180,27.49773022,150.62,150.56,6.6415]
[1728274895402,20.85853022,150.62,150.55,16.6052]
[1728274895597,20.0,150.6,150.55,23.2474]
[1728274895905,26.6401,150.6,150.55,23.2474]
[1728274896603,0.25098,150.59,150.55,23.2474]
[1728274899212,1.10951022,150.59,150.52,16.6089]
[1728274899590,0.25098,150.59,150.52,16.6089]
[1728274899892,6.89188,150.59,150.53,6.6431]
[1728274901304,6.89188,150.59,150.53,7.97163104]
[1728274903015,6.89188,150.59,150.54,6.6426]
[1728274903897,0.85853022,150.58,150.54,6.6426]
[1728274904407,0.85853022,150.57,150.54,6.6426]
[1728274904596,6.89188,150.59,150.54,6.6426]
[1728274904993,0.85853022,150.58,150.54,6.6426]
[1728274906012,6.89188,150.59,150.54,6.6426]
[1728274906506,0.12549,150.57,150.53,6.6428]
[1728274907199,6.6428,150.54,150.49,23.257]
[1728274907505,7.75281022,150.53,150.49,16.6121]
[1728274907818,6.89428,150.53,150.49,16.6121]
[1728274908105,0.25098,150.53,150.49,23.257]
[1728274909894,0.25098,150.53,150.5,6.6445]
[1728274910499,0.85853022,150.55,150.49,16.6121]
[1728274910696,0.85853022,150.54,150.51,6.6439]
[1728274911213,6.6433,150.53,150.48,6.6452]
[1728274911418,6.6441,150.51,150.46,23.2615]
[1728274911616,0.85853022,150.5,150.46,23.2615]
[1728274912203,1.10951022,150.49,150.44,6.6468]
[1728274912520,0.25098,150.49,150.45,6.6466]
[1728274913534,1.10951022,150.49,150.45,6.6466]
[1728274914620,0.25098,150.49,150.45,6.6466]
[1728274915023,7.75451022,150.49,150.44,6.647]
[1728274915315,0.12549,150.47,150.44,6.647]
[1728274915512,0.98402022,150.47,150.44,6.647]
[1728274916091,0.12549,150.48,150.44,6.647]
[1728274916505,0.12549,150.49,150.45,16.6159]
[1728274916730,21.7068,150.53,150.46,1.32910659]
[1728274917025,21.7068,150.53,150.49,6.6449]
[1728274917920,20.0,150.52,150.49,6.6449]
[1728274919007,0.25098,150.51,150.49,6.6449]
[1728274919804,0.25098,150.52,150.49,6.6449]
[1728274920706,1.10951022,150.52,150.49,6.6449]
[1728274920926,0.25098,150.52,150.49,6.6449]
[1728274921808,0.25098,150.52,150.48,6.6453]
[1728274922825,20.25098,150.53,150.49,6.6448]
[1728274923422,20.25098,150.53,150.47,16.6136]
[1728274923625,0.25098,150.53,150.5,6.6443]
[1728274923827,20.25098,150.54,150.5,6.6443]
[1728274924215,21.10951022,150.54,150.5,6.6443]
[1728274924425,27.75231022,150.54,150.49,6.6448]
[1728274925816,0.12549,150.52,150.49,6.6448]
[1728274926428,0.12549,150.53,150.49,6.6448]
[1728274927827,0.12549,150.52,150.47,23.2591]
[1728274928506,23.65112022,150.52,150.43,16.6179]
[1728274928710,0.12549,150.49,150.45,6.6465]
[1728274928950,0.98402022,150.49,150.45,6.6465]
[1728274929117,0.98402022,150.49,150.43,16.6179]
[1728274929321,7.62932022,150.49,150.44,6.6469]
[1728274929520,7.62932022,150.49,150.45,6.6467]
[1728274930318,0.98402022,150.49,150.45,6.6467]
[1728274930513,0.12549,150.49,150.45,6.6467]
[1728274930719,0.98402022,150.49,150.45,6.6467]
[1728274931232,0.98402022,150.49,150.43,16.6179]
[1728274931233,0.12549,150.48,150.43,16.6179]
[1728274931446,0.12549,150.47,150.43,23.2651]
[1728274931729,0.12549,150.47,150.43,16.6179]
[1728274931938,0.12549,150.47,150.44,6.6471]
[1728274934222,0.12549,150.49,150.44,1.32930894]
[1728274934420,0.25098,150.49,150.46,6.6461]
[1728274935112,6.94077712,150.5,150.46,6.6461]
[1728274935312,7.79930734,150.5,150.46,6.6461]
[1728274936526,0.12549,150.49,150.46,6.6461]
[1728274939545,44.88639422,150.49,150.37,16.94490403]
[1728274939838,0.25098,150.45,150.41,6.6484]
[1728274940233,1.10951022,150.45,150.41,6.6484]
[1728274940941,0.25098,150.45,150.41,6.6484]
[1728274941317,1.10951022,150.45,150.41,6.6484]
[1728274944046,0.25098,150.45,150.41,6.6484]
[1728274944841,1.10951022,150.45,150.41,6.6484]
[1728274945044,0.25098,150.45,150.41,6.6484]
[1728274945845,1.10951022,150.45,150.41,6.6484]
[1728274946548,1.10951022,150.45,150.4,23.271]
[1728274946549,0.25098,150.43,150.4,23.271]
[1728274946848,20.0,150.44,150.41,6.6484]
[1728274949039,20.0,150.44,150.4,23.271]
[1728274954341,26.6471,150.44,150.4,16.6222]
[1728274954545,26.6471,150.44,150.38,6.6494]
[1728274954546,6.89868,150.43,150.38,6.6494]
[1728274954748,15.36288,150.41,150.3,48.7211]
[1728274954955,0.25098,150.39,150.35,6.6508]
[1728274955241,7.50843022,150.38,150.34,23.2801]
[1728274956149,6.6499,150.38,150.34,23.2801]
[1728274956333,6.90038,150.39,150.34,16.6286]
[1728274956535,0.25098,150.39,150.35,7.98107052]
[1728274957535,0.25098,150.39,150.36,6.6506]
[1728274958043,20.0,150.4,150.37,6.6502]
[1728274959051,20.0,150.4,150.36,6.6506]
[1728274959753,20.0,150.4,150.34,16.6286]
[1728274959936,20.0,150.4,150.37,6.6502]
[1728274960521,15.1119,150.41,150.37,6.6502]
[1728274960848,20.25098,150.41,150.38,6.6497]
[1728274961427,0.25098,150.42,150.38,6.6497]
[1728274961842,6.91754019,150.44,150.4,6.6486]
[1728274962131,28.9593,150.45,150.4,6.6485]
[1728274963652,0.25098,150.44,150.4,6.6485]
[1728274964147,24.027864,150.44,150.39,16.6229]
[1728274964447,6.6476,150.43,150.39,16.6229]
[1728274964649,0.25098,150.42,150.39,16.6229]
[1728274964840,0.12549,150.43,150.39,23.2719]
[1728274965151,0.25098,150.43,150.39,23.2719]
[1728274965723,1.10951022,150.43,150.39,23.2719]
[1728274968248,1.10951022,150.43,150.38,6.6497]
[1728274968441,0.25098,150.43,150.38,6.6497]
[1728274968652,24.027864,150.44,150.38,6.6497]
[1728274969336,0.25098,150.42,150.38,6.6497]
[1728274970150,1.10951022,150.42,150.38,6.6497]
[1728274970956,0.25098,150.42,150.38,6.6497]
[1728274972054,0.25098,150.42,150.36,32.5042]
[1728274972256,0.25098,150.42,150.38,6.6497]
[1728274973746,0.12549,150.43,150.39,6.6492]
[1728274973939,0.25098,150.43,150.39,6.6492]
[1728274974140,0.25098,150.43,150.39,7.97892724]
[1728274974551,20.25098,150.44,150.39,1.32972724]
[1728274974735,22.3126,150.45,150.41,6.6483]
[1728274975243,0.85853022,150.44,150.41,6.6483]
[1728274977339,0.25098,150.44,150.41,6.6483]
[1728274977645,1.10951022,150.44,150.41,6.6483]
[1728274980463,1.10951022,150.44,150.4,16.6216]
[1728274980760,7.75701022,150.44,150.4,16.6216]
[1728274983561,22.3126,150.45,150.37,23.2756]
[1728274983562,0.25098,150.41,150.37,23.2756]
[1728274983748,7.75801022,150.41,150.37,23.2756]
[1728274983933,7.75801022,150.41,150.37,16.6255]
[1728274985947,6.89948,150.41,150.37,16.6255]
[1728274986547,0.85853022,150.4,150.37,16.6255]
[1728274987460,6.89948,150.41,150.37,16.6255]
[1728274989456,0.12549,150.41,150.37,17.95545187]
[1728274989760,0.12549,150.41,150.39,6.6493]
[1728274990138,0.12549,150.42,150.39,6.6493]
[1728274990553,0.25098,150.42,150.39,6.6493]
[1728274991036,0.25098,150.43,150.39,6.6493]
[1728274992247,0.25098,150.43,150.4,6.6489]
[1728274992641,1.10951022,150.43,150.37,16.6255]
[1728274992957,0.25098,150.43,150.37,16.6255]
[1728274993157,20.0,150.44,150.41,6.6483]
[1728274995364,20.0,150.44,150.39,16.6227]
[1728274995558,26.6473,150.44,150.4,6.6489]
[1728274995738,0.25098,150.44,150.41,6.6483]
[1728274995965,149.4,150.49,150.39,16.6227]
[1728274995966,177.78,150.49,150.42,1.3295264]
[1728274996256,177.78,150.49,150.39,12.23897908]
[1728274996257,177.78,150.49,150.44,23.2645]
[1728274996853,171.1351,150.49,150.44,16.6175]
[1728274997062,6.6455,150.48,150.44,16.6175]
[1728274997246,0.85853022,150.47,150.44,16.6175]
[1728274998855,6.6467,150.45,150.41,23.2693]
[1728274999166,7.50523022,150.45,150.41,23.2693]
[1728274999550,0.25098,150.44,150.41,23.2694]
[1728275000466,0.25098,150.45,150.41,23.2694]
[1728275001471,0.25098,150.46,150.42,1.32957966]
[1728275001768,0.25098,150.46,150.42,7.97723184]
[1728275002652,0.25098,150.46,150.42,7.9772387]
[1728275002951,0.25098,150.46,150.42,6.6478]
[1728275002952,1.10951022,150.46,150.42,6.6478]
[1728275003167,6.89718,150.46,150.42,6.6478]
[1728275003368,149.4,150.47,150.41,16.621]
[1728275003369,0.25098,150.44,150.41,16.621]
[1728275005052,1.10951022,150.44,150.41,16.621]
[1728275005251,1.10951022,150.44,150.37,16.0985]
[1728275005443,0.25098,150.42,150.39,6.6493]
[1728275006065,0.25098,150.42,150.38,23.274]
[1728275006458,1.10951022,150.42,150.35,16.6277]
[1728275006659,1.10951022,150.42,150.35,20.30987822]
[1728275007268,6.649,150.4,150.35,26.96087822]
[1728275007454,6.649,150.4,150.35,23.2787]
[1728275007455,0.85853022,150.39,150.35,23.2787]
[1728275008064,6.649,150.4,150.35,23.2787]
[1728275008263,0.85853022,150.39,150.35,23.2787]
[1728275009553,6.649,150.4,150.35,23.2787]
[1728275010273,0.85853022,150.39,150.35,23.2787]
[1728275011179,0.25098,150.4,150.36,6.6506]
[1728275011360,1.10951022,150.4,150.36,6.6506]
[1728275011685,0.25098,150.4,150.36,6.6506]
[1728275011969,1.10951022,150.4,150.36,6.6506]
[1728275012176,0.25098,150.4,150.36,6.6506]
[1728275014969,1.10951022,150.4,150.35,16.6277]
[1728275015168,0.25098,150.4,150.35,16.6277]
[1728275015365,0.25098,150.4,150.37,6.6502]
[1728275015684,1.10951022,150.4,150.36,6.6506]
[1728275016272,0.25098,150.4,150.36,6.6506]
[1728275017779,1.10951022,150.4,150.36,6.6506]
[1728275018082,0.25098,150.4,150.36,6.6506]
[1728275022566,1.10951022,150.4,150.36,6.6506]
[1728275023496,0.25098,150.4,150.36,6.6506]
[1728275024198,7.75861022,150.4,150.35,23.2787]
[1728275025798,6.90008,150.4,150.35,23.2787]
[1728275025978,6.90008,150.4,150.36,1.33000636]
[1728275026185,0.85853022,150.39,150.35,23.2787]
[1728275026529,6.90008,150.4,150.35,23.2787]
[1728275027301,0.85853022,150.39,150.35,23.2787]
[1728275027910,6.90008,150.4,150.35,23.2787]
[1728275031290,6.90008,150.4,150.36,1.33000392]
[1728275031691,6.90008,150.4,150.36,6.6507]
[1728275032292,0.85853022,150.39,150.36,6.6507]
[1728275032495,6.90008,150.4,150.36,6.6507]
[1728275033110,0.85853022,150.39,150.36,6.6507]
[1728275033404,6.90008,150.4,150.36,6.6507]
[1728275035695,0.85853022,150.39,150.35,23.2787]
[1728275035889,7.50803022,150.39,150.35,23.2787]
[1728275036093,7.50803022,150.39,150.35,16.6277]
[1728275036521,0.25098,150.38,150.32,16.6306]
[1728275037189,0.25098,150.38,150.34,6.6515]
[1728275037400,7.75931022,150.38,150.33,6.6519]
[1728275040211,6.90078,150.38,150.33,7.98214005]
[1728275041721,49.15917627,150.43,150.33,1.33024005]
[1728275041931,20.0,150.41,150.37,6.6499]
[1728275042931,7.50703022,150.41,150.37,6.6499]
[1728275043229,7.50703022,150.41,150.36,23.2766]
[1728275044131,0.25098,150.4,150.36,23.2766]
[1728275044304,0.25098,150.4,150.36,16.626]
[1728275044512,0.25098,150.39,150.36,16.626]
[1728275046328,7.75881022,150.39,150.34,6.6514]
[1728275046718,6.90028,150.39,150.34,6.6514]
[1728275047029,6.90028,150.39,150.34,7.9815415]
[1728275047338,6.90028,150.39,150.34,7.98156697]
[1728275049113,0.25098,150.39,150.35,6.6509]
[1728275053327,0.25098,150.39,150.36,7.98037113]
[1728275053529,0.25098,150.39,150.36,6.6503]
[1728275053852,0.25098,150.4,150.36,7.98031049]
[1728275055447,0.25098,150.4,150.36,6.6503]
[1728275055615,0.25098,150.4,150.36,7.98022549]
[1728275055819,0.25098,150.41,150.37,6.6501]
[1728275056823,0.25098,150.41,150.32,12.23897908]
[1728275057023,0.25098,150.41,150.38,6.6494]
[1728275059832,1.10951022,150.41,150.38,6.6494]
[1728275060034,0.25098,150.41,150.38,6.6494]
[1728275061338,7.75811022,150.41,150.37,16.6248]
[1728275062258,6.89958,150.41,150.37,16.6248]
[1728275063440,7.75811022,150.41,150.37,16.6248]
[1728275064064,6.89958,150.41,150.37,16.6248]
[1728275064345,0.25098,150.41,150.37,23.2749]
[1728275065546,1.10951022,150.41,150.31,6.6384]
[1728275065719,0.12549,150.39,150.36,6.6506]
[1728275066548,0.12549,150.4,150.36,6.6506]
[1728275069631,0.12549,150.4,150.34,16.6285]
[1728275069837,0.12549,150.38,150.35,10.34091656]
[1728275070047,0.12549,150.38,150.35,6.651]
[1728275071574,0.12549,150.38,150.35,7.98102357]
[1728275071743,0.25098,150.39,150.35,7.98102357]
[1728275072660,0.25098,150.4,150.37,6.6502]
[1728275072832,0.25098,150.41,150.37,6.6502]
[1728275073133,0.25098,150.41,150.37,7.98005208]
[1728275073652,7.75801022,150.41,150.36,23.2767]
[1728275074532,6.89948,150.41,150.36,23.2767]
[1728275078252,0.25098,150.41,150.36,16.6261]
[1728275078436,0.25098,150.39,150.36,16.6261]
[1728275080233,0.25098,150.37,150.33,6.6516]
[1728275080429,0.25098,150.37,150.34,3.69119995]
[1728275080636,0.25098,150.37,150.33,7.98182425]
[1728275080935,0.25098,150.37,150.34,3.69119772]
[1728275081136,0.25098,150.37,150.33,7.98182425]
[1728275081331,6.6494,150.39,150.34,10.34219079]
[1728275081530,0.12549,150.38,150.35,1.3300597]
[1728275081758,7.75891022,150.39,150.35,6.651]
[1728275081945,6.90038,150.39,150.35,6.651]
[1728275083440,6.6485,150.41,150.36,6.6506]